bitfinex/quotes_BTCUSD_20250518
["timestamp","ask_amount","ask_price","bid_price","bid_amount"]
[1747575598992,0.01561751,104250.0,104240.0,1.1624948]
[1747575599423,0.01561751,104250.0,104240.0,1.16313413]
[1747575600100,0.01561751,104250.0,104240.0,1.17829986]
[1747575600321,0.01561751,104250.0,104240.0,1.00629286]
[1747575602539,0.01561751,104250.0,104240.0,1.02349286]
[1747575604121,0.01561751,104250.0,104240.0,1.40380713]
[1747575604143,0.01561751,104250.0,104240.0,1.71834798]
[1747575604669,0.01561751,104250.0,104240.0,2.13244798]
[1747575606123,0.01561751,104250.0,104240.0,2.14974798]
[1747575606342,0.01561751,104250.0,104240.0,2.48337798]
[1747575606565,0.01561751,104250.0,104240.0,2.49899498]
[1747575607026,0.01561751,104250.0,104240.0,2.63899498]
[1747575607249,0.01561751,104250.0,104240.0,2.63799498]
[1747575607479,0.002,104270.0,104260.0,0.56060122]
[1747575607747,0.00214151,104270.0,104260.0,3.89338462]
[1747575608004,0.00214151,104270.0,104260.0,3.89842165]
[1747575608431,0.00214151,104270.0,104260.0,3.25107765]
[1747575608669,0.00214151,104270.0,104260.0,2.17144665]
[1747575608889,0.00214151,104270.0,104260.0,2.18048722]
[1747575609686,0.00314151,104270.0,104260.0,2.18048722]
[1747575609910,0.00414151,104270.0,104260.0,1.72672422]
[1747575610127,0.01373135,104270.0,104260.0,1.05441522]
[1747575610378,0.00414151,104270.0,104260.0,1.36791522]
[1747575610627,0.00314151,104270.0,104260.0,1.36791522]
[1747575610850,0.00214151,104270.0,104260.0,1.69141422]
[1747575611302,0.01984151,104270.0,104260.0,1.15322882]
[1747575611524,0.06611167,104270.0,104260.0,0.97023882]
[1747575611747,0.25792139,104270.0,104260.0,0.94246572]
[1747575611975,0.24833155,104270.0,104260.0,0.42396825]
[1747575612202,0.24833155,104270.0,104260.0,0.43911638]
[1747575612400,0.24833155,104270.0,104260.0,0.44870741]
[1747575612612,0.23874153,104270.0,104260.0,0.76952525]
[1747575612829,0.23874153,104270.0,104260.0,0.03122573]
[1747575612830,0.22915123,104270.0,104260.0,0.03122573]
[1747575613043,0.56806619,104270.0,104260.0,0.03122573]
[1747575613260,0.32646063,104270.0,104260.0,0.03122573]
[1747575613697,0.56806619,104270.0,104260.0,0.03122573]
[1747575613928,0.56806619,104270.0,104260.0,0.02922573]
[1747575614157,0.6606672,104270.0,104260.0,0.02922573]
[1747575614423,0.6716672,104270.0,104260.0,0.01202573]
[1747575614643,0.6716672,104270.0,104240.0,0.03033147]
[1747575614644,0.24683052,104250.0,104240.0,0.03033147]
[1747575614860,0.58574548,104250.0,104240.0,0.03033147]
[1747575615079,0.00959333,104230.0,104220.0,0.10526438]
[1747575615295,0.25015696,104230.0,104220.0,0.11485964]
[1747575615536,0.20149655,104220.0,104210.0,0.40975066]
[1747575615708,0.01918878,104220.0,104210.0,0.42894193]
[1747575615917,0.01918878,104220.0,104210.0,0.23206193]
[1747575616122,0.01918878,104220.0,104210.0,0.24639972]
[1747575616331,0.0358,104230.0,104220.0,0.22068588]
[1747575616528,0.07417518,104230.0,104220.0,0.22068588]
[1747575616768,0.05498713,104230.0,104220.0,0.23028059]
[1747575616979,0.2660586,104230.0,104220.0,0.23028059]
[1747575617122,0.2660586,104230.0,104220.0,0.23128059]
[1747575617781,0.2660586,104230.0,104220.0,0.23228059]
[1747575617981,0.2660586,104230.0,104220.0,0.21309163]
[1747575618200,0.2660586,104230.0,104220.0,0.22268625]
[1747575619187,0.2660586,104230.0,104220.0,0.21309163]
[1747575619401,0.25646517,104230.0,104220.0,0.23228115]
[1747575619796,0.25646517,104230.0,104220.0,0.21309163]
[1747575619965,0.24687147,104230.0,104220.0,0.20349664]
[1747575620164,0.24687147,104230.0,104220.0,0.19390174]
[1747575620415,0.24687147,104230.0,104220.0,0.20349673]
[1747575620788,0.24687147,104230.0,104220.0,0.21309163]
[1747575620982,0.24687147,104230.0,104220.0,0.22268634]
[1747575622478,0.24687147,104230.0,104220.0,0.002]
[1747575622686,0.24687147,104230.0,104220.0,0.342]
[1747575622687,0.23727749,104230.0,104220.0,0.342]
[1747575622899,0.23727749,104230.0,104220.0,0.36119007]
[1747575623506,0.22768333,104230.0,104220.0,0.342]
[1747575625767,0.32499273,104230.0,104220.0,0.002]
[1747575625984,0.56659829,104230.0,104220.0,0.002]
[1747575627454,0.56659829,104230.0,104220.0,0.001]
[1747575627882,0.56759829,104230.0,104220.0,0.001]
[1747575628307,0.23759664,104220.0,104210.0,0.00047201]
[1747575628519,0.32690085,104220.0,104210.0,0.34047201]
[1747575628727,0.32690085,104220.0,104210.0,0.54198817]
[1747575628945,0.33490604,104220.0,104210.0,0.34047201]
[1747575629826,0.33490604,104220.0,104210.0,0.34147201]
[1747575630037,0.33490604,104220.0,104210.0,0.34247201]
[1747575632250,0.21999664,104220.0,104210.0,0.53439217]
[1747575632471,0.21144652,104250.0,104240.0,0.00959315]
[1747575632681,0.04927559,104250.0,104240.0,0.56064354]
[1747575632887,0.0307755,104250.0,104240.0,0.56064354]
[1747575633106,0.23221425,104250.0,104240.0,0.56064363]
[1747575633316,0.22262266,104250.0,104240.0,0.54145807]
[1747575633524,0.22262266,104250.0,104240.0,0.55105113]
[1747575633759,0.2130308,104250.0,104240.0,0.34]
[1747575633974,0.20743875,104250.0,104240.0,0.34]
[1747575634184,0.24153875,104250.0,104240.0,0.34]
[1747575634826,0.24653875,104250.0,104240.0,0.341]
[1747575635681,0.24153875,104250.0,104240.0,0.34]
[1747575635893,0.23753875,104250.0,104240.0,0.34]
[1747575636137,0.24253875,104250.0,104240.0,0.34]
[1747575636729,0.24253875,104250.0,104240.0,0.54145816]
[1747575636953,0.22583875,104250.0,104240.0,0.34]
[1747575637826,0.22583875,104250.0,104240.0,0.34959324]
[1747575638277,0.22583875,104250.0,104240.0,0.54145816]
[1747575638508,0.21624652,104250.0,104240.0,0.34]
[1747575638717,0.23444652,104250.0,104240.0,0.34]
[1747575639550,0.33175592,104250.0,104240.0,0.34]
[1747575640890,0.22762275,104250.0,104240.0,0.55105094]
[1747575641112,0.007,104250.0,104240.0,0.56064354]
[1747575641323,0.007,104250.0,104240.0,0.57754354]
[1747575641530,0.02618317,104250.0,104240.0,0.57754354]
[1747575641973,0.007,104250.0,104240.0,0.57754354]
[1747575642217,0.004,104250.0,104240.0,1.26383754]
[1747575642441,0.004,104250.0,104240.0,1.37924694]
[1747575642655,0.002,104250.0,104240.0,1.37924694]
[1747575642871,0.003,104250.0,104240.0,1.37924694]
[1747575643081,0.004,104250.0,104240.0,1.37924694]
[1747575643268,0.004,104250.0,104240.0,1.67924694]
[1747575643574,0.002,104250.0,104240.0,1.67924694]
[1747575643788,0.002,104250.0,104240.0,2.10788779]
[1747575644011,0.002,104250.0,104240.0,2.11088779]
[1747575644242,0.002,104270.0,104260.0,0.59680122]
[1747575644457,0.03689469,104320.0,104310.0,0.22049548]
[1747575644678,0.00417397,104330.0,104320.0,0.56047434]
[1747575644875,0.04429112,104340.0,104330.0,0.5604532]
[1747575645138,0.04429112,104340.0,104330.0,4.16408278]
[1747575645359,0.04429112,104340.0,104330.0,4.11467863]
[1747575645584,0.04443279,104340.0,104330.0,4.21698803]
[1747575645806,0.00883494,104340.0,104330.0,4.22600927]
[1747575646024,0.08581215,104350.0,104340.0,0.91617293]
[1747575646293,0.08581215,104350.0,104340.0,4.84508718]
[1747575646524,0.0313,104350.0,104340.0,4.73321018]
[1747575646742,0.0313,104350.0,104340.0,1.94985648]
[1747575646962,0.05046488,104350.0,104340.0,0.85638148]
[1747575647180,0.0408823,104350.0,104340.0,1.05406148]
[1747575647402,0.0313,104350.0,104340.0,0.96489048]
[1747575647618,0.0408823,104350.0,104340.0,1.05826148]
[1747575647831,0.0313,104350.0,104340.0,1.05826148]
[1747575648053,0.04384344,104360.0,104350.0,0.82041096]
[1747575648297,0.04384344,104360.0,104350.0,1.58015836]
[1747575648504,0.04384344,104360.0,104350.0,1.99317921]
[1747575648749,0.04384344,104360.0,104350.0,1.59469921]
[1747575648954,0.04384344,104360.0,104350.0,1.99309921]
[1747575649378,0.04384344,104360.0,104350.0,1.99609921]
[1747575649810,0.04384344,104360.0,104350.0,2.02990424]
[1747575650232,0.04384344,104360.0,104350.0,2.05609119]
[1747575650443,0.04384344,104360.0,104350.0,1.60865423]
[1747575650658,0.04384344,104360.0,104350.0,1.59095423]
[1747575650840,0.04384344,104360.0,104350.0,1.97381423]
[1747575651083,0.04384344,104360.0,104350.0,1.55791338]
[1747575651308,0.04384344,104360.0,104350.0,1.54895836]
[1747575651520,0.04384344,104360.0,104350.0,1.77834636]
[1747575651750,0.04384344,104360.0,104350.0,1.23872036]
[1747575651992,0.00958138,104360.0,104350.0,1.30938322]
[1747575652209,0.22243048,104370.0,104360.0,0.00958203]
[1747575652485,0.02874461,104360.0,104350.0,0.89872018]
[1747575652707,0.21284854,104370.0,104360.0,0.55080844]
[1747575652920,0.22242965,104370.0,104360.0,0.55080844]
[1747575653140,0.23201085,104370.0,104360.0,0.55080854]
[1747575653559,0.23201085,104370.0,104360.0,0.55180854]
[1747575653778,0.22242965,104370.0,104360.0,0.56139047]
[1747575653986,0.22242965,104370.0,104360.0,0.36016433]
[1747575654200,0.21284854,104370.0,104360.0,0.96227056]
[1747575654423,0.22242965,104370.0,104360.0,0.96227056]
[1747575654635,0.22242965,104370.0,104360.0,0.96327066]
[1747575654843,0.23201085,104370.0,104360.0,0.95368863]
[1747575655058,0.23201085,104370.0,104360.0,0.37074636]
[1747575655270,0.23201158,104370.0,104360.0,0.74264]
[1747575655477,0.22243029,104370.0,104360.0,0.74264]
[1747575655893,0.21284946,104370.0,104360.0,0.002]
[1747575656101,0.65459786,104370.0,104360.0,0.40252]
[1747575656328,0.24924946,104370.0,104360.0,0.40252]
[1747575656543,0.65459786,104370.0,104360.0,0.002]
[1747575656755,0.75190726,104370.0,104360.0,0.001]
[1747575657179,0.75290726,104370.0,104360.0,0.001]
[1747575657596,0.75290726,104370.0,104350.0,0.19992]
[1747575657597,0.23762633,104360.0,104350.0,0.19992]
[1747575657805,0.33493573,104360.0,104350.0,0.19992]
[1747575658020,0.33493573,104360.0,104320.0,0.09366835]
[1747575658021,0.21086833,104330.0,104320.0,0.09366835]
[1747575658235,0.21086888,104330.0,104320.0,0.0024718]
[1747575658657,0.21086888,104330.0,104320.0,0.2025118]
[1747575658866,0.21086888,104330.0,104320.0,0.0024718]
[1747575659081,0.21086888,104330.0,104320.0,0.2025518]
[1747575659754,0.20128419,104330.0,104320.0,0.2025518]
[1747575659994,0.20128419,104330.0,104320.0,0.0024718]
[1747575660218,0.21818419,104330.0,104320.0,0.2033518]
[1747575660422,0.20128419,104330.0,104320.0,0.2033518]
[1747575661050,0.23528419,104330.0,104320.0,0.2033518]
[1747575661289,0.23528419,104330.0,104320.0,0.0044718]
[1747575661502,0.23528419,104330.0,104320.0,0.2043518]
[1747575661713,0.73794199,104330.0,104320.0,0.2043118]
[1747575662151,0.33259359,104330.0,104320.0,0.2043118]
[1747575662563,0.33259359,104330.0,104320.0,0.2033118]
[1747575662787,0.33559359,104330.0,104320.0,0.2033118]
[1747575663001,0.21386824,104330.0,104320.0,0.4143209]
[1747575663192,0.21386897,104330.0,104320.0,0.2024318]
[1747575663407,0.21386897,104330.0,104320.0,0.01205768]
[1747575663621,0.20628428,104330.0,104320.0,0.0024718]
[1747575663852,0.23645428,104330.0,104320.0,0.0024718]
[1747575664324,0.73911208,104330.0,104320.0,0.0024718]
[1747575664531,0.33376368,104330.0,104320.0,0.0024718]
[1747575666028,0.34830453,104330.0,104320.0,0.0024718]
[1747575666238,0.75365293,104330.0,104320.0,0.0024718]
[1747575666475,0.95421293,104330.0,104320.0,0.0024718]
[1747575666979,0.97421293,104330.0,104320.0,0.0024718]
[1747575667404,0.97221293,104330.0,104320.0,0.0024718]
[1747575667616,0.98020721,104330.0,104320.0,0.0024718]
[1747575668483,0.98420721,104330.0,104320.0,0.0034718]
[1747575669857,0.97420721,104330.0,104320.0,0.0034718]
[1747575670085,0.33417309,104330.0,104320.0,0.01305759]
[1747575670303,0.22286261,104330.0,104320.0,0.21436117]
[1747575670530,0.01199428,104330.0,104320.0,0.30100694]
[1747575670763,0.02816874,104330.0,104320.0,0.50140694]
[1747575670986,0.02816874,104330.0,104320.0,0.29051784]
[1747575670987,0.23903762,104330.0,104320.0,0.29051784]
[1747575671210,0.22945339,104330.0,104320.0,0.29051784]
[1747575671434,0.22445339,104330.0,104320.0,0.30010363]
[1747575671681,0.22445339,104330.0,104320.0,0.50140703]
[1747575671932,0.22145339,104330.0,104320.0,0.28951784]
[1747575672158,0.002,104330.0,104320.0,0.48123563]
[1747575672388,0.002,104330.0,104320.0,0.84999218]
[1747575672613,0.002,104330.0,104320.0,0.85901253]
[1747575673056,0.01158414,104330.0,104320.0,0.85901253]
[1747575673284,0.002,104330.0,104320.0,0.85901253]
[1747575674232,0.002,104330.0,104320.0,3.10827593]
[1747575674495,0.002,104330.0,104320.0,1.92977293]
[1747575674725,0.002,104330.0,104320.0,0.95474177]
[1747575674951,0.03075352,104330.0,104320.0,0.84784695]
[1747575675173,0.2128687,104330.0,104320.0,0.68829215]
[1747575675437,0.2128687,104330.0,104320.0,0.88959564]
[1747575675679,0.2128687,104330.0,104320.0,0.48867564]
[1747575675934,0.20328419,104330.0,104320.0,0.68825215]
[1747575676168,0.34049359,104330.0,104320.0,0.21185215]
[1747575676396,0.34049359,104330.0,104320.0,0.01149215]
[1747575676629,0.76038284,104330.0,104320.0,0.01149215]
[1747575676864,0.76038284,104330.0,104320.0,0.0024718]
[1747575678254,0.35802738,104330.0,104320.0,0.0024718]
[1747575678475,0.76337578,104330.0,104320.0,0.0024718]
[1747575678696,0.34348653,104330.0,104320.0,0.0024718]
[1747575678912,0.33090881,104330.0,104320.0,0.0024718]
[1747575679131,0.19369941,104330.0,104320.0,0.0024718]
[1747575679366,0.19609598,104330.0,104320.0,0.01205768]
[1747575679608,0.19609598,104330.0,104320.0,0.0024718]
[1747575680562,0.29340538,104330.0,104320.0,0.0024718]
[1747575680774,0.29100881,104330.0,104320.0,0.0024718]
[1747575681230,0.33140881,104330.0,104320.0,0.0024718]
[1747575682204,0.34594966,104330.0,104320.0,0.0024718]
[1747575682867,0.754291,104330.0,104320.0,0.0024718]
[1747575684739,0.3489426,104330.0,104320.0,0.0024718]
[1747575686172,0.754291,104330.0,104320.0,0.0024718]
[1747575686377,0.764291,104330.0,104320.0,0.0024718]
[1747575686584,0.964691,104330.0,104320.0,0.0024718]
[1747575687026,1.0620004,104330.0,104320.0,0.0024718]
[1747575687241,0.964691,104330.0,104320.0,0.0024718]
[1747575688270,0.5593426,104330.0,104320.0,0.0024718]
[1747575688687,0.3589426,104330.0,104320.0,0.0024718]
[1747575689537,0.3489426,104330.0,104320.0,0.0024718]
[1747575690006,0.29400175,104330.0,104320.0,0.0024718]
[1747575692880,0.3085426,104330.0,104320.0,0.0024718]
[1747575693138,0.3506426,104330.0,104320.0,0.0024718]
[1747575693376,0.765991,104330.0,104320.0,0.0024718]
[1747575693833,0.3506426,104330.0,104320.0,0.0024718]
[1747575694254,0.31520175,104330.0,104320.0,0.0024718]
[1747575695350,0.29400175,104330.0,104320.0,0.0024718]
[1747575695579,0.31490175,104330.0,104320.0,0.0024718]
[1747575697047,0.3506426,104330.0,104320.0,0.0024718]
[1747575697500,0.3085426,104330.0,104320.0,0.0024718]
[1747575697905,0.29400175,104330.0,104320.0,0.0024718]
[1747575699753,0.31580175,104330.0,104320.0,0.0024718]
[1747575699962,0.33780175,104330.0,104320.0,0.0024718]
[1747575700198,0.29400175,104330.0,104320.0,0.0024718]
[1747575701229,0.29100881,104330.0,104320.0,0.0024718]
[1747575702008,0.29100881,104330.0,104320.0,0.01156025]
[1747575704184,0.29100881,104330.0,104320.0,0.21286383]
[1747575704825,0.29100881,104330.0,104320.0,0.22244953]
[1747575705064,0.0993094,104330.0,104320.0,0.24162029]
[1747575705289,0.002,104330.0,104320.0,0.48400029]
[1747575705506,0.002,104330.0,104320.0,0.82400029]
[1747575707548,0.002,104330.0,104320.0,0.83913769]
[1747575708177,0.002,104330.0,104320.0,1.66344669]
[1747575708390,0.002,104330.0,104320.0,1.03807469]
[1747575708574,0.002,104330.0,104320.0,1.03668869]
[1747575709402,0.002,104330.0,104320.0,1.13399809]
[1747575710491,0.002,104330.0,104320.0,1.11886069]
[1747575711754,0.002,104330.0,104320.0,1.04020269]
[1747575711959,0.002,104330.0,104320.0,1.23936269]
[1747575712416,0.002,104330.0,104320.0,1.12118969]
[1747575712826,0.002,104330.0,104320.0,1.12122969]
[1747575713260,0.002,104330.0,104320.0,0.82468029]
[1747575713490,0.002,104330.0,104320.0,1.02380029]
[1747575713718,0.002,104330.0,104320.0,0.62572029]
[1747575713897,0.001,104330.0,104320.0,0.62572029]
[1747575714105,0.01916681,104340.0,104330.0,0.5604532]
[1747575714322,0.00958331,104340.0,104330.0,0.5604532]
[1747575714529,0.00798331,104340.0,104330.0,0.5604532]
[1747575714685,0.0175669,104340.0,104330.0,0.56954165]
[1747575714875,0.01756681,104340.0,104330.0,0.56954165]
[1747575715356,0.01756681,104340.0,104330.0,0.57054165]
[1747575716041,0.01756681,104340.0,104330.0,0.58187279]
[1747575716480,0.22041275,104350.0,104340.0,0.2012649]
[1747575716690,0.3081392,104350.0,104340.0,0.4002249]
[1747575716905,0.89823921,104390.0,104340.0,0.4002249]
[1747575716906,0.01701913,104410.0,104400.0,0.2878954]
[1747575717120,0.14433858,104430.0,104420.0,1.22785319]
[1747575717368,0.07903805,104430.0,104420.0,6.28441104]
[1747575717594,0.07903805,104430.0,104420.0,6.29506816]
[1747575717805,0.07903805,104430.0,104420.0,6.30960901]
[1747575718017,0.07403805,104430.0,104420.0,6.36022901]
[1747575718235,0.07403805,104430.0,104420.0,6.36070081]
[1747575718696,0.07403805,104430.0,104420.0,6.90089745]
[1747575718910,0.07403805,104430.0,104420.0,7.03152055]
[1747575719121,0.07403805,104430.0,104420.0,6.99820685]
[1747575719362,0.07151805,104430.0,104420.0,7.12080477]
[1747575719563,0.07151805,104430.0,104420.0,7.0497178]
[1747575719780,0.07251805,104430.0,104420.0,6.01008988]
[1747575720270,0.07251805,104430.0,104420.0,5.44911588]
[1747575720478,0.07251805,104430.0,104420.0,4.10124588]
[1747575720706,0.07251805,104430.0,104420.0,4.07826388]
[1747575720915,0.07251805,104430.0,104420.0,4.53002388]
[1747575722197,0.14912806,104430.0,104420.0,0.56524103]
[1747575723066,0.14812806,104430.0,104420.0,0.55824103]
[1747575723274,0.07151805,104430.0,104420.0,2.17055284]
[1747575723485,0.07251805,104430.0,104420.0,2.58935284]
[1747575723694,0.07251805,104430.0,104420.0,3.04203284]
[1747575723901,0.07151805,104430.0,104420.0,3.05573284]
[1747575724120,0.07151805,104430.0,104420.0,3.45722112]
[1747575724338,0.07251805,104430.0,104420.0,3.37027369]
[1747575724561,0.07251805,104430.0,104420.0,3.37527369]
[1747575725540,0.07251805,104430.0,104420.0,3.37027369]
[1747575725752,0.07251805,104430.0,104420.0,3.45722112]
[1747575725972,0.07151805,104430.0,104420.0,3.47822112]
[1747575726191,0.07151805,104430.0,104420.0,3.06885482]
[1747575726406,0.07251805,104430.0,104420.0,3.51116931]
[1747575726838,0.07251805,104430.0,104420.0,3.41422188]
[1747575727292,0.07251805,104430.0,104420.0,3.82832188]
[1747575727724,0.07251805,104430.0,104420.0,3.48662188]
[1747575727971,0.07251805,104430.0,104420.0,3.04463967]
[1747575728187,0.07251805,104430.0,104420.0,3.49727967]
[1747575729305,0.07251805,104430.0,104420.0,3.48173148]
[1747575729520,0.07251805,104430.0,104420.0,3.01499063]
[1747575729735,0.07251805,104430.0,104420.0,3.46735063]
[1747575730382,0.07251805,104430.0,104420.0,3.28925891]
[1747575730596,0.07251805,104430.0,104420.0,3.8117256]
[1747575730817,0.07251805,104430.0,104420.0,3.89867303]
[1747575731026,0.04956004,104430.0,104420.0,3.89867303]
[1747575731451,0.04956004,104430.0,104420.0,3.8117256]
[1747575731865,0.04956004,104430.0,104420.0,3.77648475]
[1747575732257,0.04956004,104430.0,104420.0,3.7912256]
[1747575732621,0.04956004,104430.0,104420.0,3.77668475]
[1747575732839,0.04956004,104430.0,104420.0,3.32440475]
[1747575733069,0.04956004,104430.0,104420.0,3.54872475]
[1747575733269,0.04906004,104430.0,104420.0,3.77688475]
[1747575733475,0.04906004,104430.0,104420.0,2.68440475]
[1747575733841,0.26930215,104430.0,104420.0,0.54235574]
[1747575734055,0.12567005,104430.0,104420.0,0.78983063]
[1747575734261,0.12567005,104430.0,104420.0,0.78995063]
[1747575735156,0.12467005,104430.0,104420.0,0.77599063]
[1747575735389,0.14687005,104430.0,104420.0,0.77599063]
[1747575735668,0.14787005,104430.0,104420.0,0.78699063]
[1747575736959,0.14787005,104430.0,104420.0,0.79656688]
[1747575737166,0.14787005,104430.0,104420.0,0.79628688]
[1747575737369,0.14787005,104430.0,104420.0,0.81120162]
[1747575737603,0.04906004,104430.0,104420.0,0.58316162]
[1747575737819,0.04906004,104430.0,104420.0,0.81100162]
[1747575738036,0.04906004,104430.0,104420.0,1.20801962]
[1747575738461,0.04906004,104430.0,104420.0,0.81100162]
[1747575738685,0.29435084,104430.0,104420.0,0.6849633]
[1747575738902,0.09326004,104430.0,104420.0,0.70411597]
[1747575739312,0.09326004,104430.0,104420.0,0.80142537]
[1747575740180,0.28477588,104430.0,104420.0,0.68496357]
[1747575740390,0.30392589,104430.0,104420.0,0.69482]
[1747575740592,0.30392589,104430.0,104420.0,0.69498]
[1747575740796,0.31350113,104430.0,104420.0,0.68540357]
[1747575741006,0.30392589,104430.0,104420.0,0.70455634]
[1747575741422,0.30392589,104430.0,104420.0,0.71413277]
[1747575741633,0.28477588,104430.0,104420.0,0.70455624]
[1747575741840,0.102835,104430.0,104420.0,0.71413249]
[1747575742052,0.09326004,104430.0,104420.0,0.72370864]
[1747575742266,0.04906004,104430.0,104420.0,0.49542864]
[1747575742483,0.04906004,104430.0,104420.0,0.82085804]
[1747575743582,0.04906004,104430.0,104420.0,0.8059433]
[1747575744014,0.04906004,104430.0,104420.0,1.0543533]
[1747575745085,0.01461564,104430.0,104420.0,1.0543533]
[1747575745305,0.01461564,104430.0,104420.0,0.8059433]
[1747575745525,0.01461564,104430.0,104420.0,0.9368613]
[1747575745770,0.01461564,104430.0,104420.0,0.96713693]
[1747575746884,0.01760551,104430.0,104420.0,0.96713693]
[1747575747077,0.23043467,104440.0,104430.0,0.22024238]
[1747575747304,0.25313467,104440.0,104430.0,0.32664032]
[1747575747528,0.24356062,104440.0,104430.0,0.34579071]
[1747575747968,0.05206129,104440.0,104430.0,0.34579071]
[1747575748425,0.05306129,104440.0,104430.0,0.35079071]
[1747575748642,0.05306129,104440.0,104430.0,0.35379071]
[1747575748864,0.00756129,104440.0,104430.0,0.35379071]
[1747575749515,0.46602878,104450.0,104430.0,0.34421446]
[1747575749937,0.20107156,104440.0,104430.0,0.35525602]
[1747575750146,0.3415512,104450.0,104440.0,0.21064689]
[1747575750393,0.36069773,104450.0,104440.0,0.22022139]
[1747575750583,0.36069773,104450.0,104440.0,0.20107229]
[1747575750729,0.36069773,104450.0,104440.0,0.21064698]
[1747575750981,0.36069773,104450.0,104440.0,0.24845876]
[1747575751379,0.36169773,104450.0,104440.0,0.24845876]
[1747575751674,0.37127132,104450.0,104440.0,0.24845885]
[1747575752224,0.37027132,104450.0,104440.0,0.23131003]
[1747575752429,0.15964432,104450.0,104440.0,0.24088453]
[1747575752637,0.16921772,104450.0,104440.0,0.2504583]
[1747575752860,0.16921772,104450.0,104440.0,0.24488407]
[1747575753061,0.17879122,104450.0,104440.0,0.24488407]
[1747575753266,0.37027039,104450.0,104440.0,0.24488398]
[1747575754535,0.37027039,104450.0,104440.0,0.22573525]
[1747575754747,0.37984407,104450.0,104440.0,0.22573525]
[1747575754954,0.37984407,104450.0,104440.0,0.24488416]
[1747575755161,0.37984407,104450.0,104440.0,0.23530975]
[1747575755377,0.37984407,104450.0,104440.0,0.26550115]
[1747575755589,0.33582978,104450.0,104440.0,0.04527985]
[1747575755843,0.34540373,104450.0,104440.0,0.24635214]
[1747575756020,0.33583023,104450.0,104440.0,0.04527985]
[1747575756199,0.33583023,104450.0,104440.0,0.05485472]
[1747575756403,0.05367414,104440.0,104430.0,0.29342073]
[1747575756765,0.06324819,104440.0,104430.0,0.48469768]
[1747575758025,0.06324819,104440.0,104430.0,0.45449771]
[1747575758234,0.05467405,104440.0,104430.0,0.45849771]
[1747575758663,0.06424828,104440.0,104430.0,0.46149771]
[1747575759187,0.06424828,104440.0,104430.0,0.23681771]
[1747575759393,0.06424828,104440.0,104430.0,0.46041771]
[1747575759605,0.05467405,104440.0,104430.0,0.46041771]
[1747575759807,0.06424828,104440.0,104430.0,0.46041771]
[1747575760012,0.25574579,104440.0,104430.0,0.46999295]
[1747575760264,0.27489553,104440.0,104430.0,0.007]
[1747575760463,0.2653213,104440.0,104430.0,0.007]
[1747575760667,0.49556461,104440.0,104430.0,0.007]
[1747575760948,0.59287401,104440.0,104430.0,0.007]
[1747575761557,0.35305638,104440.0,104430.0,0.007]
[1747575761753,0.59187401,104440.0,104430.0,0.003]
[1747575762040,0.24859144,104430.0,104420.0,0.0024718]
[1747575762247,0.85007695,104430.0,104420.0,0.0024718]
[1747575762461,0.58571847,104430.0,104420.0,0.0024718]
[1747575762697,0.2485908,104430.0,104420.0,0.0024718]
[1747575762926,0.25816604,104430.0,104420.0,0.22273508]
[1747575763164,0.0441,104440.0,104430.0,0.22022969]
[1747575763396,0.26432011,104440.0,104420.0,0.30089144]
[1747575763612,0.001,104430.0,104420.0,0.54372366]
[1747575764460,0.002,104430.0,104420.0,0.54672366]
[1747575764669,0.002,104430.0,104420.0,0.55226041]
[1747575764877,0.001,104430.0,104420.0,0.55226041]
[1747575765091,0.001,104430.0,104420.0,0.55326041]
[1747575765528,0.001,104430.0,104420.0,2.04350741]
[1747575765726,0.001,104430.0,104420.0,1.69253141]
[1747575765983,0.001,104430.0,104420.0,1.31918641]
[1747575766185,0.001,104430.0,104420.0,0.89326041]
[1747575766391,0.21064661,104440.0,104430.0,0.22024238]
[1747575766604,0.21064661,104440.0,104430.0,0.22024247]
[1747575766810,0.21064661,104440.0,104430.0,0.21066733]
[1747575767016,0.26432093,104440.0,104430.0,0.22024284]
[1747575767226,0.25474661,104440.0,104430.0,0.43502733]
[1747575767405,0.25474661,104440.0,104430.0,0.65460275]
[1747575767607,0.26432084,104440.0,104430.0,0.64602733]
[1747575767807,0.27389525,104440.0,104430.0,0.65560293]
[1747575768009,0.27389525,104440.0,104430.0,0.66517844]
[1747575768555,0.27389525,104440.0,104430.0,0.65560293]
[1747575768744,0.27489525,104440.0,104430.0,0.66517844]
[1747575768947,0.26532084,104440.0,104430.0,0.67475386]
[1747575769147,0.25574661,104440.0,104430.0,0.66517807]
[1747575769358,0.25574661,104440.0,104430.0,0.67977708]
[1747575769554,0.001,104440.0,104430.0,0.69892765]
[1747575769762,0.001,104440.0,104430.0,0.79623705]
[1747575770384,0.001,104440.0,104430.0,0.57187705]
[1747575770588,0.001,104440.0,104430.0,0.7859019]
[1747575770787,0.20207156,104440.0,104430.0,0.68859241]
[1747575771025,0.25714579,104440.0,104430.0,0.67901708]
[1747575771241,0.25714579,104440.0,104430.0,3.25197854]
[1747575771242,0.001,104440.0,104430.0,3.25197854]
[1747575771446,0.001,104440.0,104430.0,3.28069054]
[1747575771654,0.001,104440.0,104430.0,3.25809054]
[1747575771830,0.001,104440.0,104430.0,3.23499054]
[1747575772064,0.001,104440.0,104430.0,3.23399054]
[1747575772268,0.06962957,104450.0,104440.0,0.56022102]
[1747575772476,0.06962957,104450.0,104440.0,1.99505142]
[1747575773067,0.06962957,104450.0,104440.0,2.00411683]
[1747575773276,0.06962957,104450.0,104440.0,1.96338483]
[1747575773697,0.06962957,104450.0,104440.0,1.82817983]
[1747575774315,0.06962957,104450.0,104440.0,1.45326683]
[1747575774526,0.06962957,104450.0,104440.0,0.97485383]
[1747575774731,0.06962957,104450.0,104440.0,1.43069383]
[1747575774961,0.07062957,104450.0,104440.0,1.43669383]
[1747575775820,0.07062957,104450.0,104440.0,1.12843583]
[1747575776028,0.07062957,104450.0,104440.0,1.12811583]
[1747575776237,0.07062957,104450.0,104440.0,0.67659583]
[1747575776448,0.07062957,104450.0,104440.0,1.12815583]
[1747575777070,0.07062957,104450.0,104440.0,0.78815583]
[1747575777278,0.07062957,104450.0,104440.0,0.80324108]
[1747575777692,0.11612957,104450.0,104440.0,0.47833168]
[1747575778103,0.13527601,104450.0,104440.0,0.47833168]
[1747575778305,0.1257027,104450.0,104440.0,0.47833168]
[1747575779058,0.07062957,104450.0,104440.0,1.06007008]
[1747575779265,0.07062957,104450.0,104440.0,1.08603708]
[1747575779478,0.07062957,104450.0,104440.0,0.96985208]
[1747575779689,0.1242027,104450.0,104440.0,0.70209168]
[1747575779922,0.1242027,104450.0,104440.0,0.25437168]
[1747575780129,0.13377601,104450.0,104440.0,0.47813168]
[1747575780322,0.14574291,104450.0,104440.0,0.24479745]
[1747575780555,0.13377601,104450.0,104440.0,0.47789168]
[1747575781003,0.1242027,104450.0,104440.0,0.47411971]
[1747575781470,0.09332957,104450.0,104440.0,0.25059971]
[1747575781679,0.07062957,104450.0,104440.0,0.47363971]